[Event "*** SCC Grand Prix: Titled Tuesday Blitz"]
[Site "Chess.com"]
[Date "2020.06.02"]
[Round "8"]
[White "Grandmaster2B"]
[Black "lifeissofun"]
[Result "1-0"]
[WhiteElo "2429"]
[BlackElo "2260"]
[TimeControl "180+1"]
[EndTime "11:37:28 PDT"]
[Termination "Grandmaster2B won by resignation"]

1. e4 {[%clk 0:03:00.9]} 1... c5 {[%clk 0:03:00.2]} 2. Nf3 {[%clk 0:03:00]} 2...
d6 {[%clk 0:03:00.8]} 3. d4 {[%clk 0:03:00.4]} 3... cxd4 {[%clk 0:03:01.7]} 4.
Nxd4 {[%clk 0:03:00.9]} 4... Nf6 {[%clk 0:03:02.2]} 5. Nc3 {[%clk 0:03:01.3]}
5... a6 {[%clk 0:03:02.8]} 6. f3 {[%clk 0:03:01.6]} 6... e5 {[%clk 0:03:03.4]}
7. Nb3 {[%clk 0:03:02]} 7... Be6 {[%clk 0:03:03]} 8. Be3 {[%clk 0:03:02.4]} 8...
h5 {[%clk 0:03:03.6]} 9. Nd5 {[%clk 0:03:00]} 9... Bxd5 {[%clk 0:03:01.5]} 10.
exd5 {[%clk 0:03:00.9]} 10... g6 {[%clk 0:03:01]} 11. Be2 {[%clk 0:03:00.5]}
11... Nbd7 {[%clk 0:03:01.1]} 12. c4 {[%clk 0:02:58.5]} 12... Qc7 {[%clk
0:02:59.6]} 13. O-O {[%clk 0:02:58.7]} 13... b6 {[%clk 0:02:59]} 14. Rc1 {[%clk
0:02:59]} 14... Bg7 {[%clk 0:02:57]} 15. a4 {[%clk 0:02:59.4]} 15... a5 {[%clk
0:02:55.2]} 16. Na1 {[%clk 0:02:57.8]} 16... e4 {[%clk 0:02:51.3]} 17. Nc2
{[%clk 0:02:55.1]} 17... exf3 {[%clk 0:02:48]} 18. gxf3 {[%clk 0:02:54.9]} 18...
Ne5 {[%clk 0:02:47.5]} 19. Nd4 {[%clk 0:02:55.3]} 19... O-O {[%clk 0:02:45.5]}
20. Nb5 {[%clk 0:02:55.3]} 20... Qd7 {[%clk 0:02:41.5]} 21. Bxb6 {[%clk
0:02:51.6]} 21... Bh6 {[%clk 0:02:24.9]} 22. Rc3 {[%clk 0:02:43.1]} 22... Ra6
{[%clk 0:02:17.4]} 23. Be3 {[%clk 0:02:31.6]} 23... Bg7 {[%clk 0:02:12.7]} 24.
Nd4 {[%clk 0:02:20.1]} 24... Rb6 {[%clk 0:02:04.4]} 25. Rb3 {[%clk 0:02:12.6]}
25... Rxb3 {[%clk 0:02:01.1]} 26. Qxb3 {[%clk 0:02:13.5]} 26... Re8 {[%clk
0:01:56.9]} 27. Bg5 {[%clk 0:01:47.2]} 27... Nh7 {[%clk 0:01:48.2]} 28. Bf4
{[%clk 0:01:40.6]} 28... Nxc4 {[%clk 0:01:39.8]} 29. Ne6 {[%clk 0:01:28]} 29...
fxe6 {[%clk 0:01:34]} 30. Bxc4 {[%clk 0:01:27.7]} 30... e5 {[%clk 0:01:29.1]}
31. Bb5 {[%clk 0:01:25.2]} 31... Qb7 {[%clk 0:01:24.4]} 32. Qd3 {[%clk
0:01:19.3]} 32... Rf8 {[%clk 0:01:18.2]} 33. Bg3 {[%clk 0:01:16.7]} 33... Rf5
{[%clk 0:01:11.4]} 34. Be8 {[%clk 0:01:00.5]} 34... Qb6+ {[%clk 0:01:01.8]} 35.
Kh1 {[%clk 0:00:58.3]} 35... Nf8 {[%clk 0:00:55.2]} 36. Bxg6 {[%clk 0:00:57.4]}
36... Rf6 {[%clk 0:00:48.9]} 37. Bxh5 {[%clk 0:00:48.3]} 37... Qxb2 {[%clk
0:00:48.9]} 38. Rg1 {[%clk 0:00:28.4]} 38... Rh6 {[%clk 0:00:47.9]} 39. Qf5
{[%clk 0:00:23.3]} 39... Qb7 {[%clk 0:00:42.1]} 40. Bh4 {[%clk 0:00:16.6]} 40...
Kh8 {[%clk 0:00:39.3]} 41. Rg4 {[%clk 0:00:06.2]} 41... Qxd5 {[%clk 0:00:21.4]}
42. Be7 {[%clk 0:00:04.8]} 42... Qg8 {[%clk 0:00:19.1]} 43. Rxg7 {[%clk
0:00:03.8]} 43... Qxg7 {[%clk 0:00:18.8]} 44. Bxf8 {[%clk 0:00:03.9]} 44... Qh7
{[%clk 0:00:06.4]} 45. Qxh7+ {[%clk 0:00:04.2]} 45... Rxh7 {[%clk 0:00:05.6]}
46. Bg4 {[%clk 0:00:04.9]} 46... Rf7 {[%clk 0:00:05.6]} 47. Bxd6 {[%clk
0:00:05.1]} 47... e4 {[%clk 0:00:04.6]} 48. Be5+ {[%clk 0:00:05.3]} 48... Kh7
{[%clk 0:00:04]} 49. fxe4 {[%clk 0:00:06]} 49... Kg6 {[%clk 0:00:04.5]} 50. Bf5+
{[%clk 0:00:06.9]} 50... Kg5 {[%clk 0:00:04.8]} 51. Bd4 {[%clk 0:00:07]} 51...
Rc7 {[%clk 0:00:02.9]} 52. Be3+ {[%clk 0:00:06.9]} 52... Kf6 {[%clk 0:00:02.7]}
53. Kg2 {[%clk 0:00:07.2]} 53... Ke5 {[%clk 0:00:03.6]} 54. Bf2 {[%clk 0:00:07]}
54... Rc4 {[%clk 0:00:04.5]} 55. Bg3+ {[%clk 0:00:07]} 55... Kd4 {[%clk
0:00:04.4]} 56. Bd7 {[%clk 0:00:05.5]} 56... Rxa4 {[%clk 0:00:05.3]} 57. Bxa4
{[%clk 0:00:05.5]} 57... Kxe4 {[%clk 0:00:06.2]} 58. Be1 {[%clk 0:00:05.9]}
58... Kf5 {[%clk 0:00:06.9]} 59. Bxa5 {[%clk 0:00:06.8]} 59... Ke4 {[%clk
0:00:07.8]} 60. Be1 {[%clk 0:00:07.2]} 1-0

[Event "*** SCC Grand Prix: Titled Tuesday Blitz"]
[Site "Chess.com"]
[Date "2020.06.02"]
[Round "8"]
[White "Abund"]
[Black "bazar-wokzal"]
[Result "1-0"]
[WhiteElo "2596"]
[BlackElo "2406"]
[TimeControl "180+1"]
[EndTime "11:37:29 PDT"]
[Termination "Abund won on time"]

1. d4 {[%clk 0:03:00.9]} 1... Nf6 {[%clk 0:02:59.2]} 2. c4 {[%clk 0:03:00.6]}
2... Nc6 {[%clk 0:02:59.4]} 3. Nc3 {[%clk 0:02:59.1]} 3... e5 {[%clk 0:02:59.6]}
4. d5 {[%clk 0:02:54.4]} 4... Ne7 {[%clk 0:02:59.4]} 5. Nf3 {[%clk 0:02:54.6]}
5... Ng6 {[%clk 0:02:59.3]} 6. h4 {[%clk 0:02:43.9]} 6... h5 {[%clk 0:02:59.3]}
7. Bg5 {[%clk 0:02:43.4]} 7... Be7 {[%clk 0:02:59.5]} 8. e4 {[%clk 0:02:43.2]}
8... Ng4 {[%clk 0:02:57.7]} 9. Be2 {[%clk 0:02:33.8]} 9... f6 {[%clk 0:02:46.9]}
10. Bd2 {[%clk 0:02:15.8]} 10... Bc5 {[%clk 0:02:46.5]} 11. Rf1 {[%clk
0:02:15.5]} 11... a5 {[%clk 0:02:44]} 12. Na4 {[%clk 0:02:09.6]} 12... Ba7
{[%clk 0:02:43.4]} 13. c5 {[%clk 0:01:58.6]} 13... d6 {[%clk 0:02:43]} 14. Rc1
{[%clk 0:01:47.1]} 14... Bd7 {[%clk 0:02:38.1]} 15. Bxa5 {[%clk 0:01:32.6]}
15... dxc5 {[%clk 0:02:23.8]} 16. Bd2 {[%clk 0:00:47.6]} 16... Qe7 {[%clk
0:02:10.3]} 17. Qc2 {[%clk 0:00:45.4]} 17... b6 {[%clk 0:02:06.1]} 18. Nc3
{[%clk 0:00:44.4]} 18... O-O {[%clk 0:02:03.9]} 19. Rh1 {[%clk 0:00:42.6]} 19...
c4 {[%clk 0:01:57.3]} 20. Bxc4 {[%clk 0:00:41.1]} 20... Kh7 {[%clk 0:01:54.9]}
21. Bd3 {[%clk 0:00:26.2]} 21... b5 {[%clk 0:01:52.7]} 22. Nd1 {[%clk
0:00:25.3]} 22... Bb6 {[%clk 0:01:49.9]} 23. a3 {[%clk 0:00:24.8]} 23... Nf4
{[%clk 0:01:45.7]} 24. Bb4 {[%clk 0:00:20.6]} 24... Qf7 {[%clk 0:01:32.1]} 25.
Bxf8 {[%clk 0:00:19.8]} 25... Nxg2+ {[%clk 0:01:31.6]} 26. Kf1 {[%clk
0:00:19.7]} 26... Nf4 {[%clk 0:01:18.5]} 27. Bb4 {[%clk 0:00:19]} 27... Bxf2
{[%clk 0:01:17.8]} 28. Bd2 {[%clk 0:00:18.5]} 28... Bb6 {[%clk 0:01:12.3]} 29.
Bxf4 {[%clk 0:00:18.7]} 29... exf4 {[%clk 0:01:09.6]} 30. e5+ {[%clk 0:00:19.1]}
30... Kh8 {[%clk 0:01:09.2]} 31. e6 {[%clk 0:00:19.4]} 31... Bxe6 {[%clk
0:01:09.4]} 32. dxe6 {[%clk 0:00:19.9]} 32... Qxe6 {[%clk 0:01:10.1]} 33. Qc6
{[%clk 0:00:20.5]} 33... Qg8 {[%clk 0:00:58.3]} 34. Qxb5 {[%clk 0:00:20.3]}
34... Ra5 {[%clk 0:00:56.7]} 35. Qc4 {[%clk 0:00:19.4]} 35... Qd8 {[%clk
0:00:50.1]} 36. Rc3 {[%clk 0:00:13.1]} 36... Rd5 {[%clk 0:00:42.8]} 37. Kg2
{[%clk 0:00:12.2]} 37... Rd6 {[%clk 0:00:27.8]} 38. Re1 {[%clk 0:00:12]} 38...
Qd7 {[%clk 0:00:20.9]} 39. Qe4 {[%clk 0:00:11.9]} 39... f5 {[%clk 0:00:08.9]}
40. Qe8+ {[%clk 0:00:12.1]} 40... Qxe8 {[%clk 0:00:05.8]} 41. Rxe8+ {[%clk
0:00:13]} 41... Kh7 {[%clk 0:00:05.4]} 42. Bxf5+ {[%clk 0:00:13.6]} 42... g6
{[%clk 0:00:05.7]} 43. Bxg4 {[%clk 0:00:12.3]} 43... hxg4 {[%clk 0:00:05.3]} 44.
Ng5+ {[%clk 0:00:12.7]} 44... Kg7 {[%clk 0:00:04.3]} 45. Rc1 {[%clk 0:00:07.5]}
45... Rd2+ {[%clk 0:00:03.4]} 46. Kf1 {[%clk 0:00:07.8]} 46... g3 {[%clk
0:00:03.3]} 47. Re2 {[%clk 0:00:05.3]} 1-0

[Event "*** SCC Grand Prix: Titled Tuesday Blitz"]
[Site "Chess.com"]
[Date "2020.06.02"]
[Round "8"]
[White "korkmaz16"]
[Black "ElviraBerend"]
[Result "1-0"]
[WhiteElo "2265"]
[BlackElo "2379"]
[TimeControl "180+1"]
[EndTime "11:37:29 PDT"]
[Termination "korkmaz16 won on time"]

1. d4 {[%clk 0:03:00.9]} 1... Nf6 {[%clk 0:02:59.2]} 2. Nf3 {[%clk 0:02:55]}
2... g6 {[%clk 0:02:57.8]} 3. c4 {[%clk 0:02:54]} 3... Bg7 {[%clk 0:02:56]} 4.
Nc3 {[%clk 0:02:53.9]} 4... O-O {[%clk 0:02:55.3]} 5. Bg5 {[%clk 0:02:53.9]}
5... c5 {[%clk 0:02:54.1]} 6. d5 {[%clk 0:02:51.3]} 6... d6 {[%clk 0:02:53.5]}
7. e3 {[%clk 0:02:30.5]} 7... h6 {[%clk 0:02:48.6]} 8. Bh4 {[%clk 0:02:30]} 8...
a6 {[%clk 0:02:46.8]} 9. Be2 {[%clk 0:02:29.4]} 9... b5 {[%clk 0:02:36.7]} 10.
Nd2 {[%clk 0:02:13]} 10... bxc4 {[%clk 0:02:31.2]} 11. Nxc4 {[%clk 0:02:10.5]}
11... Nbd7 {[%clk 0:02:24.2]} 12. O-O {[%clk 0:02:07.4]} 12... Bb7 {[%clk
0:02:21.6]} 13. Rc1 {[%clk 0:02:03.9]} 13... Nb6 {[%clk 0:02:16.6]} 14. e4
{[%clk 0:01:53.7]} 14... Nxc4 {[%clk 0:02:15.4]} 15. Bxc4 {[%clk 0:01:53.1]}
15... Nd7 {[%clk 0:02:14.4]} 16. f4 {[%clk 0:01:49.4]} 16... Nb6 {[%clk
0:02:11]} 17. Bd3 {[%clk 0:01:42.3]} 17... Qd7 {[%clk 0:02:08.2]} 18. f5 {[%clk
0:01:41.2]} 18... g5 {[%clk 0:02:07.6]} 19. Bg3 {[%clk 0:01:20.6]} 19... Qd8
{[%clk 0:02:06.6]} 20. Kh1 {[%clk 0:01:04.9]} 20... Nd7 {[%clk 0:02:05.8]} 21.
b3 {[%clk 0:01:02.4]} 21... Nf6 {[%clk 0:01:53.7]} 22. Bc2 {[%clk 0:00:56.2]}
22... Qa5 {[%clk 0:01:52.1]} 23. Bb1 {[%clk 0:00:54.5]} 23... Rac8 {[%clk
0:01:44.4]} 24. Qe2 {[%clk 0:00:47.1]} 24... c4 {[%clk 0:01:36]} 25. bxc4 {[%clk
0:00:43.5]} 25... Qb4 {[%clk 0:01:34.7]} 26. Bd3 {[%clk 0:00:42.6]} 26... Ba8
{[%clk 0:01:30.8]} 27. e5 {[%clk 0:00:41.4]} 27... dxe5 {[%clk 0:01:28.2]} 28.
Bxe5 {[%clk 0:00:41.5]} 28... Rfe8 {[%clk 0:01:24.6]} 29. Ne4 {[%clk 0:00:40.9]}
29... Qa3 {[%clk 0:01:18.5]} 30. Bb2 {[%clk 0:00:37.9]} 30... Qa5 {[%clk
0:01:17.5]} 31. Nxf6+ {[%clk 0:00:35.5]} 31... exf6 {[%clk 0:01:15.8]} 32. Qf2
{[%clk 0:00:28.1]} 32... Qa4 {[%clk 0:01:10.2]} 33. Bd4 {[%clk 0:00:26.4]} 33...
Qd7 {[%clk 0:01:03.6]} 34. Rce1 {[%clk 0:00:23.9]} 34... a5 {[%clk 0:01:00.5]}
35. Qg3 {[%clk 0:00:19]} 35... a4 {[%clk 0:00:56.7]} 36. h4 {[%clk 0:00:18.7]}
36... a3 {[%clk 0:00:50]} 37. hxg5 {[%clk 0:00:18.8]} 37... hxg5 {[%clk
0:00:49.5]} 38. Kh2 {[%clk 0:00:18.6]} 38... Qd8 {[%clk 0:00:40.3]} 39. Rh1
{[%clk 0:00:15.8]} 39... Rxe1 {[%clk 0:00:37.4]} 40. Rxe1 {[%clk 0:00:14.3]}
40... Bf8 {[%clk 0:00:35.9]} 41. Kh1 {[%clk 0:00:14.1]} 41... Bd6 {[%clk
0:00:34.3]} 42. Qh3 {[%clk 0:00:13.5]} 42... Kg7 {[%clk 0:00:33.4]} 43. Qh5
{[%clk 0:00:12.9]} 43... Kg8 {[%clk 0:00:23.7]} 44. Re3 {[%clk 0:00:10.4]} 44...
Bf8 {[%clk 0:00:17.5]} 45. Rh3 {[%clk 0:00:10.1]} 45... Bg7 {[%clk 0:00:17.7]}
46. Qh7+ {[%clk 0:00:10.4]} 46... Kf8 {[%clk 0:00:17.4]} 47. Re3 {[%clk
0:00:10.9]} 47... Qd6 {[%clk 0:00:13.6]} 48. Be2 {[%clk 0:00:11]} 48... Qf4
{[%clk 0:00:11]} 49. Rd3 {[%clk 0:00:10.1]} 49... Qc1+ {[%clk 0:00:08.5]} 50.
Rd1 {[%clk 0:00:09.7]} 50... Qf4 {[%clk 0:00:07.9]} 51. Qh5 {[%clk 0:00:09.6]}
51... Kg8 {[%clk 0:00:06.3]} 52. Qf3 {[%clk 0:00:09.8]} 52... Qd6 {[%clk
0:00:04.8]} 53. Kg1 {[%clk 0:00:10.3]} 53... Rd8 {[%clk 0:00:03.7]} 54. c5
{[%clk 0:00:11.2]} 54... Qxd5 {[%clk 0:00:02.8]} 55. Qxd5 {[%clk 0:00:12.1]}
55... Bxd5 {[%clk 0:00:02.7]} 56. Bf2 {[%clk 0:00:13]} 1-0

[Event "*** SCC Grand Prix: Titled Tuesday Blitz"]
[Site "Chess.com"]
[Date "2020.06.02"]
[Round "8"]
[White "Kira170"]
[Black "grunbergmihai"]
[Result "1/2-1/2"]
[WhiteElo "2624"]
[BlackElo "2411"]
[TimeControl "180+1"]
[EndTime "11:37:30 PDT"]
[Termination "Game drawn by repetition"]

1. d4 {[%clk 0:03:00.9]} 1... f5 {[%clk 0:02:59.4]} 2. Nf3 {[%clk 0:02:59.4]}
2... Nf6 {[%clk 0:02:59.2]} 3. c4 {[%clk 0:02:59]} 3... g6 {[%clk 0:02:59]} 4.
Nc3 {[%clk 0:02:58.6]} 4... Bg7 {[%clk 0:02:59.5]} 5. Bf4 {[%clk 0:02:59]} 5...
O-O {[%clk 0:02:58.9]} 6. e3 {[%clk 0:02:59.2]} 6... d6 {[%clk 0:02:58.8]} 7. c5
{[%clk 0:02:59.1]} 7... c6 {[%clk 0:02:49.1]} 8. Qb3+ {[%clk 0:02:55.6]} 8... d5
{[%clk 0:02:48.3]} 9. Ne5 {[%clk 0:02:52.9]} 9... Nbd7 {[%clk 0:02:42.5]} 10.
Be2 {[%clk 0:02:51.8]} 10... e6 {[%clk 0:02:34.6]} 11. O-O {[%clk 0:02:44.7]}
11... Ne4 {[%clk 0:02:32.8]} 12. Nxe4 {[%clk 0:02:40.9]} 12... fxe4 {[%clk
0:02:32.3]} 13. Nxd7 {[%clk 0:02:34]} 13... Qxd7 {[%clk 0:02:32]} 14. f3 {[%clk
0:02:33.7]} 14... exf3 {[%clk 0:02:26.7]} 15. Rxf3 {[%clk 0:02:33.2]} 15... e5
{[%clk 0:02:12.5]} 16. dxe5 {[%clk 0:02:32.8]} 16... Qe7 {[%clk 0:02:06.7]} 17.
Qc3 {[%clk 0:02:24.1]} 17... Bg4 {[%clk 0:02:05.1]} 18. Rf2 {[%clk 0:02:15.8]}
18... Bxe2 {[%clk 0:02:04.5]} 19. Rxe2 {[%clk 0:02:15.5]} 19... Rae8 {[%clk
0:02:03.7]} 20. Qb4 {[%clk 0:01:54.6]} 20... Rf7 {[%clk 0:01:54.2]} 21. Rf1
{[%clk 0:01:30]} 21... Ref8 {[%clk 0:01:39]} 22. Ref2 {[%clk 0:01:21.8]} 22...
b6 {[%clk 0:01:24.4]} 23. e6 {[%clk 0:01:14.6]} 23... Qxe6 {[%clk 0:01:24.2]}
24. cxb6 {[%clk 0:01:14.1]} 24... axb6 {[%clk 0:01:22.1]} 25. Qxb6 {[%clk
0:01:13.6]} 25... d4 {[%clk 0:00:47.7]} 26. g3 {[%clk 0:00:35.2]} 26... dxe3
{[%clk 0:00:37.7]} 27. Bxe3 {[%clk 0:00:32.3]} 27... Rxf2 {[%clk 0:00:34.9]} 28.
Rxf2 {[%clk 0:00:33.2]} 28... Rxf2 {[%clk 0:00:34.5]} 29. Bxf2 {[%clk
0:00:31.8]} 29... h5 {[%clk 0:00:30.1]} 30. a4 {[%clk 0:00:28.6]} 30... h4
{[%clk 0:00:28.3]} 31. Qd8+ {[%clk 0:00:26.4]} 31... Kf7 {[%clk 0:00:28]} 32.
Qxh4 {[%clk 0:00:26.5]} 32... Bxb2 {[%clk 0:00:24.7]} 33. Qf4+ {[%clk
0:00:24.8]} 33... Bf6 {[%clk 0:00:19.4]} 34. a5 {[%clk 0:00:24.8]} 34... Qa2
{[%clk 0:00:17.1]} 35. Qc7+ {[%clk 0:00:24.2]} 35... Kg8 {[%clk 0:00:15.9]} 36.
h4 {[%clk 0:00:18.2]} 36... Qa1+ {[%clk 0:00:11.9]} 37. Kh2 {[%clk 0:00:18.3]}
37... Qa2 {[%clk 0:00:10.1]} 38. Qb6 {[%clk 0:00:14]} 38... Kg7 {[%clk
0:00:06.8]} 39. a6 {[%clk 0:00:13.1]} 39... g5 {[%clk 0:00:06.3]} 40. hxg5
{[%clk 0:00:11.6]} 40... Bxg5 {[%clk 0:00:06]} 41. a7 {[%clk 0:00:11.2]} 41...
Bf6 {[%clk 0:00:04]} 42. Kg1 {[%clk 0:00:09.3]} 42... Qa1+ {[%clk 0:00:02.9]}
43. Kg2 {[%clk 0:00:09.3]} 43... Qa2 {[%clk 0:00:03.8]} 44. Qb7+ {[%clk
0:00:08.3]} 44... Kg6 {[%clk 0:00:03.7]} 45. a8=Q {[%clk 0:00:06.4]} 45... Qd5+
{[%clk 0:00:03.6]} 46. Kg1 {[%clk 0:00:06]} 46... Qd1+ {[%clk 0:00:03.3]} 47.
Kh2 {[%clk 0:00:04.8]} 47... Qh5+ {[%clk 0:00:03.1]} 48. Kg2 {[%clk 0:00:04.8]}
48... Qd5+ {[%clk 0:00:03]} 49. Kg1 {[%clk 0:00:03.2]} 49... Qd1+ {[%clk
0:00:02.8]} 50. Kg2 {[%clk 0:00:03.2]} 50... Qd5+ {[%clk 0:00:02.5]} 1/2-1/2

[Event "*** SCC Grand Prix: Titled Tuesday Blitz"]
[Site "Chess.com"]
[Date "2020.06.02"]
[Round "8"]
[White "PavelChernomordik"]
[Black "JSMastropiero"]
[Result "0-1"]
[WhiteElo "2260"]
[BlackElo "2433"]
[TimeControl "180+1"]
[EndTime "11:37:31 PDT"]
[Termination "JSMastropiero won on time"]

1. e4 {[%clk 0:03:00.2]} 1... c5 {[%clk 0:02:57.8]} 2. Nc3 {[%clk 0:02:58.1]}
2... Nc6 {[%clk 0:02:56.3]} 3. Bb5 {[%clk 0:02:56.1]} 3... Nd4 {[%clk
0:02:50.9]} 4. Bc4 {[%clk 0:02:52.9]} 4... e6 {[%clk 0:02:46.1]} 5. Nge2 {[%clk
0:02:51.1]} 5... Ne7 {[%clk 0:02:44.2]} 6. O-O {[%clk 0:02:49.1]} 6... Nec6
{[%clk 0:02:42.2]} 7. d3 {[%clk 0:02:46.9]} 7... g6 {[%clk 0:02:39.4]} 8. f4
{[%clk 0:02:43.5]} 8... d6 {[%clk 0:02:24.5]} 9. Be3 {[%clk 0:02:36.3]} 9... Bg7
{[%clk 0:02:23.6]} 10. Ng3 {[%clk 0:02:28.5]} 10... O-O {[%clk 0:02:16.8]} 11.
Qd2 {[%clk 0:02:21.7]} 11... Rb8 {[%clk 0:02:12.3]} 12. a4 {[%clk 0:02:19.7]}
12... a6 {[%clk 0:02:10.1]} 13. Nd1 {[%clk 0:02:15.6]} 13... b5 {[%clk
0:02:08.5]} 14. axb5 {[%clk 0:02:13.1]} 14... axb5 {[%clk 0:02:09.4]} 15. Ba2
{[%clk 0:02:11.2]} 15... b4 {[%clk 0:01:48.8]} 16. f5 {[%clk 0:01:45.7]} 16...
exf5 {[%clk 0:01:39.4]} 17. exf5 {[%clk 0:01:43.7]} 17... Nxf5 {[%clk
0:01:38.5]} 18. Nxf5 {[%clk 0:01:40.3]} 18... Bxf5 {[%clk 0:01:38.1]} 19. Rxf5
{[%clk 0:01:37.7]} 19... gxf5 {[%clk 0:01:37.4]} 20. Bg5 {[%clk 0:01:36.5]}
20... Qe8 {[%clk 0:01:25.8]} 21. Ne3 {[%clk 0:01:33.4]} 21... Qe5 {[%clk
0:01:16.9]} 22. Rf1 {[%clk 0:01:26.5]} 22... Nd4 {[%clk 0:01:06.4]} 23. c3
{[%clk 0:01:21.5]} 23... bxc3 {[%clk 0:01:06.1]} 24. bxc3 {[%clk 0:01:19.1]}
24... Nb3 {[%clk 0:01:05.4]} 25. Qf2 {[%clk 0:01:09.4]} 25... f4 {[%clk
0:00:50.8]} 26. Bxf4 {[%clk 0:01:04.9]} 26... Qxc3 {[%clk 0:00:44.8]} 27. Bxd6
{[%clk 0:01:01.3]} 27... Qxd3 {[%clk 0:00:44.4]} 28. Bxb8 {[%clk 0:00:55.6]}
28... Bd4 {[%clk 0:00:33.7]} 29. Qg3+ {[%clk 0:00:46.3]} 29... Kh8 {[%clk
0:00:33.1]} 30. Be5+ {[%clk 0:00:43.6]} 30... f6 {[%clk 0:00:30]} 31. Bxd4
{[%clk 0:00:41.1]} 31... cxd4 {[%clk 0:00:28.3]} 32. Nf5 {[%clk 0:00:36.4]}
32... Qxg3 {[%clk 0:00:22.9]} 33. hxg3 {[%clk 0:00:33.9]} 33... Nd2 {[%clk
0:00:21.8]} 34. Nxd4 {[%clk 0:00:30.3]} 34... Nxf1 {[%clk 0:00:21.4]} 35. Kxf1
{[%clk 0:00:27.4]} 35... Rd8 {[%clk 0:00:20]} 36. Ne2 {[%clk 0:00:23.3]} 36...
Rd1+ {[%clk 0:00:19.8]} 37. Kf2 {[%clk 0:00:21.4]} 37... Rd2 {[%clk 0:00:20.7]}
38. Be6 {[%clk 0:00:18.3]} 38... Kg7 {[%clk 0:00:20.5]} 39. Bf5 {[%clk
0:00:16.5]} 39... Rd5 {[%clk 0:00:19.6]} 40. g4 {[%clk 0:00:14.2]} 40... Rd2
{[%clk 0:00:17.9]} 41. Ke3 {[%clk 0:00:10.6]} 41... Ra2 {[%clk 0:00:18.3]} 42.
Nf4 {[%clk 0:00:09.3]} 42... Ra3+ {[%clk 0:00:18.7]} 43. Ke4 {[%clk 0:00:06.2]}
43... Ra4+ {[%clk 0:00:18.5]} 44. Kf3 {[%clk 0:00:03.5]} 44... Ra2 {[%clk
0:00:18.8]} 0-1

[Event "*** SCC Grand Prix: Titled Tuesday Blitz"]
[Site "Chess.com"]
[Date "2020.06.02"]
[Round "8"]
[White "2008king"]
[Black "Mbneu"]
[Result "1/2-1/2"]
[WhiteElo "2125"]
[BlackElo "2230"]
[TimeControl "180+1"]
[EndTime "11:37:31 PDT"]
[Termination "Game drawn by repetition"]

1. e4 {[%clk 0:03:00.9]} 1... c5 {[%clk 0:02:59.3]} 2. Nf3 {[%clk 0:03:00.4]}
2... Nf6 {[%clk 0:02:58.7]} 3. e5 {[%clk 0:02:57.5]} 3... Nd5 {[%clk 0:02:34.4]}
4. d4 {[%clk 0:02:57.1]} 4... cxd4 {[%clk 0:02:22.5]} 5. Nxd4 {[%clk 0:02:58]}
5... Nc6 {[%clk 0:02:20.7]} 6. Nxc6 {[%clk 0:02:50.3]} 6... dxc6 {[%clk
0:02:21.2]} 7. c4 {[%clk 0:02:50.1]} 7... Nb6 {[%clk 0:02:07.9]} 8. Qxd8+ {[%clk
0:02:48.5]} 8... Kxd8 {[%clk 0:02:08.4]} 9. Nc3 {[%clk 0:02:49.3]} 9... Be6
{[%clk 0:02:06.8]} 10. b3 {[%clk 0:02:48.5]} 10... Kc7 {[%clk 0:02:05.6]} 11.
Bb2 {[%clk 0:02:48.1]} 11... g6 {[%clk 0:02:01.8]} 12. Be2 {[%clk 0:02:43.6]}
12... Bg7 {[%clk 0:02:00.5]} 13. Ne4 {[%clk 0:02:41.3]} 13... Nd7 {[%clk
0:01:54.1]} 14. f4 {[%clk 0:02:39]} 14... h6 {[%clk 0:01:49.5]} 15. O-O {[%clk
0:02:20.2]} 15... Bf5 {[%clk 0:01:43.5]} 16. Bf3 {[%clk 0:02:18.7]} 16... Bxe4
{[%clk 0:01:35.5]} 17. Bxe4 {[%clk 0:02:19.6]} 17... Nc5 {[%clk 0:01:34.5]} 18.
Bc2 {[%clk 0:02:15.5]} 18... e6 {[%clk 0:01:27.7]} 19. b4 {[%clk 0:02:13.3]}
19... Na6 {[%clk 0:01:23.8]} 20. a3 {[%clk 0:02:13.2]} 20... Rhd8 {[%clk
0:01:20.4]} 21. Rad1 {[%clk 0:02:12.4]} 21... Bf8 {[%clk 0:01:17.3]} 22. Rxd8
{[%clk 0:01:57.6]} 22... Rxd8 {[%clk 0:01:15.8]} 23. Rd1 {[%clk 0:01:58.5]}
23... Rxd1+ {[%clk 0:01:12.7]} 24. Bxd1 {[%clk 0:01:59.4]} 24... Nb8 {[%clk
0:01:07]} 25. Bf3 {[%clk 0:01:53.4]} 25... Nd7 {[%clk 0:01:05]} 26. g4 {[%clk
0:01:52.3]} 26... Nb6 {[%clk 0:01:03.7]} 27. Be2 {[%clk 0:01:48.1]} 27... Na4
{[%clk 0:01:02.4]} 28. Ba1 {[%clk 0:01:47.2]} 28... a5 {[%clk 0:00:57.6]} 29. c5
{[%clk 0:01:41.8]} 29... axb4 {[%clk 0:00:55.8]} 30. axb4 {[%clk 0:01:42.7]}
30... b5 {[%clk 0:00:53.7]} 31. Bd4 {[%clk 0:01:39.4]} 31... Kd7 {[%clk
0:00:49.6]} 32. Kf2 {[%clk 0:01:37.3]} 32... Be7 {[%clk 0:00:49.2]} 33. Ke3
{[%clk 0:01:36.8]} 33... Bh4 {[%clk 0:00:48.6]} 34. Bd1 {[%clk 0:01:33.7]} 34...
Be1 {[%clk 0:00:45]} 35. h3 {[%clk 0:01:16]} 35... Bxb4 {[%clk 0:00:41.8]} 36.
Bxa4 {[%clk 0:01:13.2]} 36... bxa4 {[%clk 0:00:41.1]} 37. Kd3 {[%clk 0:01:12.7]}
37... Kc7 {[%clk 0:00:29.9]} 38. Bb2 {[%clk 0:01:08.5]} 38... Bxc5 {[%clk
0:00:21.5]} 39. Kc4 {[%clk 0:01:07.4]} 39... Be7 {[%clk 0:00:21.5]} 40. Bd4
{[%clk 0:01:03.1]} 40... a3 {[%clk 0:00:21.4]} 41. Kb3 {[%clk 0:01:03]} 41...
Kb7 {[%clk 0:00:21.3]} 42. Bc3 {[%clk 0:00:55.6]} 42... Ka6 {[%clk 0:00:20.9]}
43. Bd2 {[%clk 0:00:55.4]} 43... Kb5 {[%clk 0:00:20.9]} 44. Bc1 {[%clk 0:00:56]}
44... Bc5 {[%clk 0:00:20.4]} 45. h4 {[%clk 0:00:53.6]} 45... Bb4 {[%clk
0:00:20.5]} 46. h5 {[%clk 0:00:53.4]} 46... gxh5 {[%clk 0:00:20]} 47. gxh5
{[%clk 0:00:54.3]} 47... c5 {[%clk 0:00:19.1]} 48. f5 {[%clk 0:00:49.9]} 48...
c4+ {[%clk 0:00:20]} 49. Ka2 {[%clk 0:00:49.5]} 49... c3 {[%clk 0:00:18.6]} 50.
fxe6 {[%clk 0:00:48.6]} 50... fxe6 {[%clk 0:00:17.9]} 51. Bxh6 {[%clk
0:00:49.1]} 51... c2 {[%clk 0:00:18.1]} 52. Bc1 {[%clk 0:00:48.6]} 52... Kc4
{[%clk 0:00:17.7]} 53. h6 {[%clk 0:00:48.3]} 53... Bf8 {[%clk 0:00:17.3]} 54. h7
{[%clk 0:00:39.2]} 54... Bg7 {[%clk 0:00:17.7]} 55. Kxa3 {[%clk 0:00:35.3]}
55... Bxe5 {[%clk 0:00:15]} 56. Bb2 {[%clk 0:00:35.3]} 56... Kd3 {[%clk
0:00:11.8]} 57. Ka2 {[%clk 0:00:32.9]} 57... Bxb2 {[%clk 0:00:05.6]} 58. Kxb2
{[%clk 0:00:33.8]} 58... Kd2 {[%clk 0:00:06.1]} 59. h8=Q {[%clk 0:00:34.3]}
59... c1=Q+ {[%clk 0:00:07]} 60. Kb3 {[%clk 0:00:34]} 60... Qc2+ {[%clk
0:00:07.1]} 61. Kb4 {[%clk 0:00:34.2]} 61... Qe4+ {[%clk 0:00:06.7]} 62. Kb3
{[%clk 0:00:34.6]} 62... Qd5+ {[%clk 0:00:06]} 63. Kb4 {[%clk 0:00:33.8]} 63...
e5 {[%clk 0:00:05.3]} 64. Qh2+ {[%clk 0:00:31.7]} 64... Ke3 {[%clk 0:00:05.6]}
65. Qg3+ {[%clk 0:00:31.5]} 65... Kd4 {[%clk 0:00:03.8]} 66. Qf2+ {[%clk
0:00:30.8]} 66... Ke4 {[%clk 0:00:03.9]} 67. Qg2+ {[%clk 0:00:29.2]} 67... Kd4
{[%clk 0:00:04.5]} 68. Qd2+ {[%clk 0:00:29.4]} 68... Ke4 {[%clk 0:00:04.5]} 69.
Qg2+ {[%clk 0:00:27.8]} 69... Kd4 {[%clk 0:00:05.1]} 70. Qd2+ {[%clk 0:00:28.1]}
70... Ke4 {[%clk 0:00:05.4]} 71. Qg2+ {[%clk 0:00:28.4]} 1/2-1/2